fUST/lending_fUST_20240603
["ID","MTS","AMOUNT","RATE_DAILY","PERIOD"]
[328438061,1717387837904,-1165.51060655,0.00020771,2]
[328438064,1717387837918,-1998.88621859,0.00020771,2]
[328438168,1717387840724,-1024.99757509,0.00020771,2]
[328438170,1717387840735,-16362.85519106,0.00020772,2]
[328438258,1717387843019,-360.46553519,0.00020772,2]
[328438267,1717387846069,-8176.67927375,0.00020772,2]
[328438268,1717387846078,-3740.8838301,0.00020924,2]
[328438270,1717387846087,-197.5188166,0.00021238,2]
[328438272,1717387846096,-2132.46258462,0.00021862,2]
[328438273,1717387846105,-153.4902998,0.0002189,2]
[328438274,1717387846114,-290.54,0.0002199,3]
[328438275,1717387846124,-871.62,0.0002199,3]
[328438276,1717387846133,-155.38006083,0.00021998,2]
[328438277,1717387846142,-928.91457823,0.00021998,2]
[328438278,1717387846151,-9576.46137373,0.00021999,2]
[328438279,1717387846161,-408.66421617,0.00021999,2]
[328438280,1717387846170,-32065.72788003,0.00022,2]
[328438281,1717387846732,-535.82866128,0.00022,2]
[328438282,1717387846744,-18306.97175483,0.00022,2]
[328438283,1717387846753,-2132.46258463,0.00022258,2]
[328438284,1717387846763,-166.666666,0.00022431,2]
[328438285,1717387846772,-166.666666,0.00022944,2]
[328438286,1717387846782,-303.65343967,0.00023,2]
[328438287,1717387846791,-153.0,0.00023315,2]
[328438288,1717387846800,-153.0,0.00023315,2]
[328438289,1717387846810,-153.0,0.00023315,2]
[328438290,1717387846820,-153.0,0.00023315,2]
[328438291,1717387846830,-306.0,0.00023315,2]
[328438292,1717387846839,-359.96646252,0.0002336,3]
[328438293,1717387955382,154.98450155,9.999e-05,2]
[328438317,1717388371359,273.37336231,9.9e-05,2]
[328438318,1717388379580,273.37336231,9.9e-05,2]
[328438319,1717388389350,273.37336231,9.9e-05,2]
[328438320,1717388397716,273.37336231,9.9e-05,2]
[328438321,1717388400378,157.522469,0.000136,2]
[328438323,1717388405879,273.37336231,9.9e-05,2]
[328438324,1717388414383,273.37336231,9.9e-05,2]
[328438325,1717388424525,273.37336231,9.9e-05,2]
[328438326,1717388432487,273.37336231,9.9e-05,2]
[328438327,1717388740371,239.337174,9.999e-05,2]
[328438330,1717388928837,659.34508716,9.999e-05,2]
[328438380,1717389032142,-7910.60909773,0.00019225,2]
[328438382,1717389032151,-2034.77313841,0.00019226,2]
[328438384,1717389032160,-31558.54189974,0.00019226,2]
[328438742,1717389041480,-2111.50910737,0.00019224,2]
[328438744,1717389041490,-5041.11311263,0.00019226,2]
[328438746,1717389041501,-4118.40291957,0.00019226,2]
[328438937,1717389043453,-962.02615551,0.00019226,2]
[328441862,1717389153813,197.83566746,0.00019449,7]
[328441864,1717389210091,154.98450155,9.999e-05,2]
[328441865,1717389211189,154.98450155,9.999e-05,2]
[328441866,1717389212401,197.83566745,0.00019449,7]
[328441871,1717389701982,239.337174,9.999e-05,2]
[328441872,1717389745486,3379.34007068,9.999e-05,2]
[328441873,1717389763485,549.37639632,9.999e-05,2]
[328441874,1717389819765,405.0,0.00015101,2]
[328441875,1717389882833,155.71229618,0.0001,2]
[328441876,1717389914765,309.84507746,0.00015101,2]
[328441877,1717389919714,1154.46562014,9.999e-05,2]
[328441878,1717390094713,1981.65143947,9.999e-05,2]
[328441879,1717390116448,659.34508716,9.999e-05,2]
[328441898,1717390170666,4558.8945666,0.00014857,2]
[328441992,1717390232772,-2639.9956011,0.00015174,2]
[328441994,1717390232781,-19289.36611798,0.00015174,2]
[328441996,1717390232790,-7910.60909773,0.00015175,2]
[328441998,1717390232800,-24900.0,0.00015178,2]
[328441999,1717390232809,-165.7488747,0.00015514,2]
[328442001,1717390232821,-250.0,0.00015662,2]
[328442003,1717390232830,-3000.0,0.00015742,2]
[328442005,1717390232839,-262.84315,0.00016014,2]
[328442007,1717390232847,-345.1408277,0.00016263,2]
[328442009,1717390232857,-1715.2985261,0.00016626,2]
[328442011,1717390232866,-1138.74722317,0.00017868,2]
[328442013,1717390232877,-335.6782196,0.000189,2]
[328442015,1717390232886,-184.96972521,0.000191,2]
[328442017,1717390232895,-500.0,0.00019178,2]
[328442019,1717390232904,-2033.47237691,0.00019225,2]
[328442021,1717390232913,-2847.44959567,0.00019226,2]
[328442056,1717390238245,-6847.5977998,0.00019226,2]
[328442058,1717390238257,-8144.18781622,0.00019226,2]
[328442059,1717390238267,-500.0,0.00019448,2]
[328442060,1717390238276,-4266.81559878,0.00019449,2]
[328442061,1717390238326,-1294.2564823,0.00019449,2]
[328442062,1717390238337,-4438.92791892,0.00019449,2]
[328442064,1717390238347,-153.0,0.00020505,2]
[328442066,1717390238356,-153.0,0.00020582,2]
[328442067,1717390238365,-166.65531,0.00020901,2]
[328442068,1717390238375,-1088.51,0.0002099,3]
[328442069,1717390238383,-544.25,0.0002099,3]
[328442070,1717390238393,-816.41,0.0002099,3]
[328442071,1717390238402,-6261.24677108,0.00021,2]
[328442073,1717390241502,-638.36546201,0.00021,2]
[328442074,1717390241791,-4647.92934937,0.00021,2]
[328442082,1717390243408,-1491.89341263,0.00021,2]
[328442094,1717390284611,154.98450155,9.999e-05,2]
[328442095,1717390296007,923.23452736,0.00014,2]
[328442096,1717390304748,154.98450155,9.999e-05,2]
[328442097,1717390306816,284.27772922,0.000137,2]
[328442098,1717390311138,156.80835983,9.999e-05,2]
[328442099,1717390317861,154.98450155,9.999e-05,2]
[328442100,1717390408272,154.98450155,9.999e-05,2]
[328442101,1717390604529,181.82898436,9.999e-05,2]
[328442102,1717390869727,239.337174,9.999e-05,2]
[328442103,1717391013378,305.3780539,9.999e-05,2]
[328442105,1717391275099,659.34508716,9.999e-05,2]
[328442173,1717391432875,-2111.50910737,0.00017855,2]
[328442175,1717391432884,-523.49146573,0.0001787,2]
[328442177,1717391432893,-394.3509307,0.00017918,2]
[328442179,1717391432903,-24900.0,0.00017922,2]
[328442180,1717391432912,-537.213707,0.00018002,2]
[328442182,1717391432921,-250.0,0.00018158,2]
[328442184,1717391432930,-1174.1652311,0.00018396,2]
[328442186,1717391432939,-1518.10725,0.00018584,2]
[328442188,1717391432949,-223.78547974,0.000189,2]
[328442190,1717391432958,-500.0,0.00019178,2]
[328442192,1717391432967,-165.0489532,0.00019178,2]
[328442194,1717391432976,-314.27911617,0.00019448,2]
[328442196,1717391432985,-164.5367482,0.00019714,2]
[328442198,1717391432994,-276.36879168,0.00019771,2]
[328442200,1717391433003,-461.8019537,0.0002,2]
[328442202,1717391433012,-205.0258957,0.00020438,2]
[328442204,1717391433022,-205.0258957,0.00020438,2]
[328442206,1717391433031,-205.0258957,0.00020438,2]
[328442208,1717391433040,-205.0258957,0.00020438,2]
[328442210,1717391433049,-153.0,0.00020447,2]
[328442212,1717391433058,-205.0258957,0.00020478,2]
[328442214,1717391433067,-205.0258957,0.00020478,2]
[328442216,1717391433076,-205.0258957,0.00020678,2]
[328442218,1717391433085,-205.0258957,0.00020678,2]
[328442220,1717391433095,-156.8914689,0.00020795,2]
[328442222,1717391433104,-197.7400887,0.00020795,2]
[328442224,1717391433113,-153.0,0.00020795,2]
[328442226,1717391433123,-307.3424554,0.00020877,2]
[328442228,1717391433132,-205.0258957,0.00020878,2]
[328442230,1717391433141,-1886.11339559,0.00020999,2]
[328442232,1717391433150,-535.66,0.00020999,2]
[328442233,1717391433162,-1326.90978748,0.00021,2]
[328442235,1717391433171,-22895.98817428,0.00021,2]
[328442237,1717391433180,-276.36879161,0.00021212,2]
[328442239,1717391433189,-205.0258957,0.00021268,2]
[328442241,1717391433198,-159.56018718,0.00021516,2]
[328442243,1717391433209,-205.0258957,0.00021616,2]
[328442246,1717391433218,-205.0258957,0.00021616,2]
[328442248,1717391433227,-292.111389,0.00021616,2]
[328442250,1717391433236,-153.0,0.00021616,2]
[328442252,1717391433246,-205.0258957,0.00021616,2]
[328442254,1717391433256,-292.111389,0.00021616,2]
[328442255,1717391433265,-205.0258957,0.00021616,2]
[328442257,1717391433274,-292.111389,0.00021616,2]
[328442259,1717391433283,-292.111389,0.00021616,2]
[328442261,1717391433292,-205.0258957,0.00021616,2]
[328442263,1717391433302,-292.111389,0.00021616,2]
[328442265,1717391433311,-291.1741297,0.00021616,2]
[328442268,1717391433320,-409.4672305,0.00021616,2]
[328442269,1717391433330,-659.34508716,0.00021917,2]
[328442271,1717391433339,-166.666666,0.00021918,2]
[328442274,1717391433349,-5618.0026169,0.00021999,2]
[328442276,1717391433361,-1449.31656669,0.00021999,2]
[328442384,1717391439034,-3067.5102,0.00021999,2]
[328442386,1717391439051,-863.72813384,0.00021999,2]
[328442388,1717391439063,-4453.76137005,0.00021999,2]
[328442390,1717391439073,-366.0,0.00022,2]
[328442392,1717391439082,-159.56018716,0.00022069,2]
[328442394,1717391439091,-366.0,0.00022192,2]
[328442396,1717391439101,-707.91357479,0.00022359,2]
[328442446,1717391442217,-496.36527315,0.00022359,2]
[328442448,1717391442230,-1434.18650136,0.00022359,2]
[328442449,1717391442239,-166.666666,0.00022431,2]
[328442450,1717391442249,-159.56018716,0.00022623,2]
[328442451,1717391442259,-925.57271203,0.00022636,2]
[328442452,1717391442268,-276.36879161,0.00022654,2]
[328442453,1717391442277,-500.0,0.00022764,2]
[328442454,1717391442287,-153.0,0.00022904,2]
[328442455,1717391442297,-153.0,0.00022904,2]
[328442456,1717391442307,-153.0,0.00022904,2]
[328442457,1717391442319,-153.0,0.00022904,2]
[328442458,1717391442330,-153.0,0.00022904,2]
[328442459,1717391442340,-153.0,0.00022904,2]
[328442460,1717391442350,-153.0,0.00022904,2]
[328442461,1717391442360,-153.0,0.00022904,2]
[328442462,1717391442369,-153.0,0.00022904,2]
[328442463,1717391442382,-153.0,0.00022904,2]
[328442464,1717391442396,-166.666666,0.00022944,2]
[328442465,1717391442406,-1004.91202325,0.00023,2]
[328442466,1717391442416,-366.0,0.00023014,2]
[328442467,1717391442426,-150.81109046,0.00023081,2]
[328442468,1717391442439,-159.56018716,0.00023176,2]
[328442469,1717391442450,-166.666666,0.00023456,2]
[328442470,1717391442462,-263.0175467,0.00023534,2]
[328442471,1717391442473,-159.56018716,0.00023729,2]
[328442472,1717391442483,-1909.98608066,0.00023824,2]
[328442473,1717391442493,-500.0,0.00023824,2]
[328442474,1717391442503,-500.0,0.00023824,2]
[328442475,1717391442514,-500.0,0.00023824,2]
[328442476,1717391442523,-500.0,0.00023824,2]
[328442477,1717391442533,-500.0,0.00023824,2]
[328442478,1717391442543,-500.0,0.00023824,2]
[328442479,1717391442552,-500.0,0.00023824,2]
[328442480,1717391442561,-500.0,0.00023824,2]
[328442481,1717391442571,-500.0,0.00023824,2]
[328442482,1717391442581,-500.0,0.00023824,2]
[328442483,1717391442590,-52.70863773,0.00023824,2]
[328442721,1717391693145,154.98450155,9.999e-05,2]
[328442723,1717391969007,305.3780539,9.999e-05,2]
[328442728,1717392614559,305.3780539,9.999e-05,2]
[328442776,1717392631909,-250.0,0.00017839,2]
[328442780,1717392631920,-255.29629948,0.00018695,2]
[328442782,1717392631929,-42503.02587818,0.00018794,2]
[328442798,1717392638675,-388.6222072,0.00018793,2]
[328442799,1717392638684,-3911.5772228,0.00018794,2]
[328442835,1717392641839,-3828.02409338,0.00018794,2]
[328442837,1717392641849,-11085.32628211,0.00018794,2]
[328442839,1717392641859,-24900.0,0.00018795,2]
[328442841,1717392641868,-566.277056,0.00018871,2]
[328442843,1717392641877,-204.90410865,0.000189,2]
[328442845,1717392641888,-500.0,0.00019178,2]
[328442847,1717392641897,-500.0,0.00019178,2]
[328442848,1717392641908,-500.0,0.00019178,2]
[328442850,1717392641917,-500.0,0.00019178,2]
[328442852,1717392641927,-500.0,0.00019178,2]
[328442854,1717392641936,-500.0,0.00019178,2]
[328442856,1717392641946,-500.0,0.00019178,2]
[328442858,1717392641955,-500.0,0.00019178,2]
[328442860,1717392641965,-476.33305127,0.00019178,2]
[328442862,1717392641975,-500.0,0.00019178,2]
[328442864,1717392641986,-500.0,0.00019178,2]
[328442866,1717392641997,-500.0,0.00019178,2]
[328442869,1717392642007,-500.0,0.00019178,2]
[328442871,1717392642017,-500.0,0.00019178,2]
[328442872,1717392642026,-500.0,0.00019178,2]
[328442874,1717392642036,-500.0,0.00019178,2]
[328442892,1717392642219,-500.0,0.00019178,2]
[328442893,1717392642228,-622.50372675,0.00019799,2]
[328442894,1717392642238,-189.99763459,0.00019799,2]
[328442895,1717392642247,-805.27,0.00019888,3]
[328442896,1717392642256,-402.64,0.00019888,3]
[328442897,1717392642266,-201.32,0.00019888,3]
[328442898,1717392642276,-603.98,0.00019888,3]
[328442899,1717392642285,-19364.60854496,0.00019898,2]
[328442901,1717392642295,-6748.5851839,0.00019899,2]
[328442902,1717392642305,-462.59629197,0.0002,2]
[328442903,1717392642315,-3999.27191535,0.00021,2]
[328442904,1717392642324,-1610.54,0.00021258,3]
[328442905,1717392642334,-805.28,0.00021258,3]
[328442906,1717392642343,-402.64,0.00021258,3]
[328442907,1717392642352,-166.666666,0.00021918,2]
[328442908,1717392642361,-229.0,0.00022,2]
[328442909,1717392642371,-229.0,0.00022192,2]
[328442910,1717392642380,-166.666666,0.00022431,2]
[328442911,1717392642392,-316.58265261,0.00022636,2]
[328442912,1717392642401,-166.666666,0.00022944,2]
[328442913,1717392642410,-229.0,0.00023014,2]
[328442915,1717392642419,-306.0,0.0002326,2]
[328442917,1717392642428,-154.3744982,0.0002326,2]
[328442919,1717392642438,-153.0,0.0002326,2]
[328442921,1717392642447,-153.0,0.0002326,2]
[328442923,1717392642456,-153.0,0.0002326,2]
[328442925,1717392642465,-153.0,0.0002326,2]
[328442927,1717392642474,-153.0,0.0002326,2]
[328442929,1717392642483,-153.0,0.0002326,2]
[328442931,1717392642493,-342.6372315,0.00023342,2]
[328442933,1717392642502,-166.666666,0.00023456,2]
[328442937,1717392642512,-157.1132247,0.00023507,2]
[328442940,1717392642521,-628.07696747,0.00023637,2]
[328442943,1717392642531,-181.21087259,0.00023803,2]
[328443024,1717392643270,-1543.4725368,0.00023803,2]
[328443026,1717392643280,-184.70656089,0.00023822,2]
[328443028,1717392643289,-250.21217066,0.00023822,2]
[328443029,1717392643298,-399.37942586,0.00023822,2]
[328443032,1717392643308,-448.24244395,0.00023822,2]
[328443034,1717392643317,-500.0,0.00023822,2]
[328443036,1717392643327,-1153.49437578,0.00023825,2]
[328443038,1717392643336,-3068.80547799,0.00023826,2]
[328443039,1717392643345,-191.232516,0.00023826,2]
[328443041,1717392643354,-151.0,0.00023826,2]
[328443044,1717392643364,-3044.71844752,0.00023827,2]
[328443046,1717392643375,-187.12639134,0.00023827,2]
[328443048,1717392643385,-301.96661732,0.00023827,2]
[328443050,1717392643394,-155.70550294,0.00023827,2]
[328443052,1717392643403,-249.04741679,0.00023827,2]
[328443054,1717392643412,-163.94283083,0.00023827,2]
[328443056,1717392643421,-155.73253739,0.00023827,2]
[328443058,1717392643430,-157.91066825,0.00023827,2]
[328443060,1717392643440,-194.83263889,0.00023827,2]
[328443061,1717392643451,-1054.19922185,0.00023827,2]
[328443063,1717392643461,-155.40849192,0.00023827,2]
[328443065,1717392643471,-181.70453988,0.00023827,2]
[328443068,1717392643480,-686.99627407,0.00023827,2]
[328443069,1717392643489,-239.8122461,0.00023827,2]
[328443071,1717392643498,-659.24463131,0.00023827,2]
[328443073,1717392643507,-155.07883069,0.00023827,2]
[328443075,1717392643516,-155.17921195,0.00023827,2]
[328443077,1717392643525,-155.17863782,0.00023827,2]
[328443079,1717392643535,-155.33672741,0.00023827,2]
[328443081,1717392643546,-159.37929536,0.00023827,2]
[328443083,1717392643555,-1470.2745826,0.00023827,2]
[328443085,1717392643564,-1903.43712619,0.00023827,2]
[328443087,1717392643574,-155.19258817,0.00023827,2]
[328443088,1717392643584,-155.24422847,0.00023827,2]
[328443090,1717392643593,-155.07786264,0.00023827,2]
[328443092,1717392643603,-262.6467043,0.00023827,2]
[328443094,1717392643612,-691.54705652,0.00023827,2]
[328443096,1717392643621,-155.36539711,0.00023827,2]
[328443098,1717392643630,-151.0,0.00023827,2]
[328443100,1717392643642,-157.961847,0.00023827,2]
[328443102,1717392643651,-151.0,0.00023827,2]
[328443104,1717392643660,-151.0,0.00023827,2]
[328443106,1717392643669,-151.0,0.00023827,2]
[328443107,1717392643678,-300.051221,0.00023827,2]
[328443109,1717392643687,-151.0,0.00023827,2]
[328443111,1717392643697,-151.0,0.00023827,2]
[328443113,1717392643706,-151.0,0.00023827,2]
[328443115,1717392643715,-151.0,0.00023827,2]
[328443117,1717392643725,-151.0,0.00023827,2]
[328443119,1717392643734,-152.38583,0.00023827,2]
[328443121,1717392643743,-151.0,0.00023827,2]
[328443123,1717392643754,-151.0,0.00023827,2]
[328443125,1717392643763,-283.489208,0.00023827,2]
[328443127,1717392643772,-151.0,0.00023827,2]
[328443129,1717392643782,-151.0,0.00023827,2]
[328443131,1717392643791,-14249.9545959,0.00023828,2]
[328443134,1717392643803,-1269.89697753,0.00023828,2]
[328443136,1717392643812,-268.29540814,0.00023828,7]
[328443138,1717392643821,-164.805751,0.00023828,2]
[328443140,1717392643830,-151.0,0.00023828,2]
[328443142,1717392643839,-199.381544,0.00023828,2]
[328443144,1717392643848,-151.0,0.00023828,2]
[328443145,1717392643857,-205.693631,0.00023828,2]
[328443147,1717392643867,-151.0,0.00023828,2]
[328443149,1717392643875,-151.0,0.00023828,2]
[328443151,1717392643886,-9902.97284989,0.00023829,7]
[328443153,1717392643895,-26615.73873557,0.00023829,2]
[328443310,1717392648573,-332.00887731,0.00019178,2]
[328443311,1717392648584,-8290.94830631,0.00023829,2]
[328443312,1717392648773,-12666.86625957,0.00023829,2]
[328443314,1717392681345,227.84754238,9.999e-05,2]
[328443316,1717392720648,272.29500778,9.999e-05,2]
[328443327,1717393680818,272.29500778,9.999e-05,2]
[328443334,1717393811781,305.3780539,9.999e-05,2]
[328443335,1717393812918,499.84,0.0001999,3]
[328443357,1717393832461,-346.52410568,0.00018705,2]
[328443358,1717393832470,-7910.60909773,0.00018706,2]
[328443359,1717393832479,-32905.89564938,0.00018707,2]
[328443360,1717393832531,-17336.73154498,0.00018707,2]
[328443361,1717393832541,-24900.0,0.00018708,2]
[328443362,1717393832550,-150.0,0.000189,2]
[328443363,1717393832559,-936.125413,0.0001938,2]
[328443364,1717393832569,-853.76467624,0.00019685,2]
[328443365,1717393832577,-500.0,0.0001978,2]
[328443366,1717393832587,-500.0,0.0001978,2]
[328443367,1717393832596,-500.0,0.0001978,2]
[328443368,1717393832605,-424.17132478,0.00019781,2]
[328443369,1717393832614,-506.03552784,0.0001989,2]
[328443370,1717393832623,-155.48760131,0.0002,2]
[328443371,1717393832632,-12321.08114468,0.0002,2]
[328443372,1717393832643,-166.461261,0.00021002,2]
[328443373,1717393832651,-853.76467621,0.0002114,2]
[328443374,1717393832661,-166.666666,0.00021918,2]
[328443375,1717393832670,-500.0,0.00021999,2]
[328443376,1717393832680,-450.95688966,0.00021999,2]
[328443377,1717393832689,-322.15625615,0.00021999,2]
[328443378,1717393832700,-500.0,0.00021999,2]
[328443379,1717393832709,-500.0,0.00021999,2]
[328443380,1717393832719,-500.0,0.00021999,2]
[328443381,1717393832730,-484.47273318,0.00021999,2]
[328443382,1717393832740,-200.0,0.00021999,2]
[328443383,1717393832749,-41139.57461505,0.00022,2]
[328443384,1717393832758,-163.0,0.00022,2]
[328443385,1717393832768,-163.0,0.00022192,2]
[328443386,1717393832777,-166.666666,0.00022431,2]
[328443387,1717393832787,-853.76467621,0.00022595,2]
[328443388,1717393832796,-166.666666,0.00022944,2]
[328443389,1717393832806,-261.04067308,0.00023,2]
[328443390,1717393832815,-2571.0,0.00023,2]
[328443391,1717393832825,-153.0,0.00023014,2]
[328443392,1717393832835,-163.0,0.00023014,2]
[328443393,1717393832844,-153.0,0.00023178,2]
[328443394,1717393832854,-166.666666,0.00023456,2]
[328443395,1717393832864,-150.44771377,0.00023542,2]
[328443396,1717393832875,-154.43981397,0.0002359,2]
[328443397,1717393832884,-435.48257567,0.00023728,2]
[328443398,1717393832893,-4951.48642494,0.00023729,7]
[328443399,1717393832903,-151.0,0.00023729,2]
[328443400,1717393832912,-151.0,0.00023729,2]
[328443401,1717393832921,-151.0,0.00023729,2]
[328443402,1717393832931,-187.223544,0.00023729,2]
[328443403,1717393832940,-187.223544,0.00023729,2]
[328443404,1717393832949,-151.0,0.00023729,2]
[328443405,1717393832958,-249.752271,0.00023729,2]
[328443406,1717393832967,-151.0,0.00023729,2]
[328443407,1717393832977,-151.0,0.00023729,2]
[328443408,1717393832986,-151.0,0.00023729,2]
[328443409,1717393832995,-315.004675,0.00023729,2]
[328443410,1717393833004,-315.004675,0.00023729,2]
[328443411,1717393833013,-26169.44860441,0.00023729,3]
[328443496,1717393843592,-385.989009,0.0001978,2]
[328443497,1717393843603,-202.943933,0.0001978,2]
[328443498,1717393843613,-151.0,0.00023729,2]
[328443499,1717393843623,-40.28337701,0.00023729,2]
[328443501,1717393843740,-110.71662299,0.00023729,2]
[328443503,1717393843749,-6042.83172487,0.00023729,3]
[328443505,1717393843761,-6948.73950722,0.00023729,3]
[328443565,1717394440469,397.38,0.00028,120]
[328443570,1717394908943,305.3780539,9.999e-05,2]
[328443578,1717394965989,272.29500778,9.999e-05,2]
[328443601,1717395032634,-2034.77313841,0.00017792,2]
[328443603,1717395032644,-7910.60909773,0.00017793,2]
[328443605,1717395032654,-1138.74722317,0.00017795,2]
[328443607,1717395032663,-24900.0,0.00020166,2]
[328443609,1717395032672,-2070.87543186,0.00021,2]
[328443610,1717395032682,-1715.2985261,0.00021603,2]
[328443612,1717395032691,-166.666666,0.00021918,2]
[328443614,1717395032701,-735.421721,0.00021961,2]
[328443617,1717395032714,-203.7,0.00022668,5]
[328443618,1717395032724,-203.7,0.00023215,5]
[328443621,1717395032733,-1544.54261176,0.00023627,2]
[328443622,1717395032744,-1544.54261173,0.00023653,2]
[328443624,1717395032755,-1430.874146,0.00023678,2]
[328443642,1717395040327,-113.66846573,0.00023678,2]
[328443644,1717395040337,-1339.13127422,0.00023704,2]
[328443645,1717395040348,-205.41133751,0.00023704,2]
[328443646,1717395040358,-500.0,0.00023725,2]
[328443647,1717395040369,-13075.62917986,0.00023726,2]
[328443648,1717395040380,-20373.59380978,0.00023726,2]
[328443649,1717395040392,-956.76850577,0.00023726,2]
[328443650,1717395040402,-232.10366022,0.00023728,2]
[328443651,1717395040411,-1544.54261173,0.00023729,2]
[328443652,1717395040420,-1414.38719967,0.00023729,3]
[328443654,1717395042709,-345.46321928,0.00023729,3]
[328443961,1717396235349,-10476.6863812,0.00020334,2]
[328443963,1717396235361,-3118.91454386,0.00020334,2]
[328444111,1717396240185,272.29500778,9.999e-05,2]
[328444129,1717396240443,-1916.47538153,0.00020334,2]
[328444130,1717396240457,-10333.05526244,0.00020334,2]
[328444131,1717396240469,-2304.54738321,0.00020334,2]
[328444132,1717396240482,-1616.37354694,0.00020334,2]
[328444134,1717396240492,-3000.0,0.00020335,2]
[328444136,1717396240502,-618.73219533,0.00020885,2]
[328444138,1717396240512,-165.7488747,0.00020985,2]
[328444141,1717396240522,-24900.0,0.00020997,2]
[328444144,1717396240532,-250.0,0.0002106,2]
[328444146,1717396240541,-345.1408277,0.000213,2]
[328444149,1717396240551,-4.95555365,0.00021354,2]
[328444152,1717396240563,-494.17688235,0.00021354,2]
[328444155,1717396240573,-198.49547897,0.00021626,2]
[328444158,1717396240584,-216.294838,0.00021918,2]
[328444161,1717396240594,-618.73219531,0.00022043,2]
[328444163,1717396240604,-194.9,0.00022668,5]
[328444166,1717396240614,-618.73219531,0.000232,2]
[328444169,1717396240624,-194.9,0.00023215,5]
[328444172,1717396240634,-306.0,0.00023315,2]
[328444175,1717396240644,-1430.36444006,0.0002366,2]
[328444703,1717396339040,-213.11629592,0.00029,120]
[328444704,1717396339066,-151.65,0.00029,120]
[328444709,1717396462427,247.0,0.00015101,2]
[328444712,1717396496572,2093.42945296,0.00015101,2]
[328444713,1717396501151,16177.2687642,0.00015101,2]
[328444714,1717396510566,2107.65536299,0.00015101,2]
[328444715,1717396525154,16177.2687642,0.00015101,2]
[328444716,1717396531518,659.34508716,9.999e-05,2]
[328444717,1717396541168,13833.24749451,0.00015101,2]
[328444722,1717396990433,-272.29500778,0.000151,2]
[328444723,1717396990459,-2079.62191966,0.00015101,2]
[328444725,1717397008827,-162.4,0.00022583,5]
[328444733,1717397361169,296.0,0.00028,120]
[328444775,1717397432189,-150.0,0.000189,2]
[328444777,1717397432198,-2366.0548451,0.00019031,2]
[328444779,1717397432209,-22533.9451549,0.00019031,2]
[328444781,1717397432218,-184.96972521,0.000191,2]
[328444783,1717397432228,-249.566218,0.00019122,2]
[328444785,1717397432237,-3000.0,0.00019198,2]
[328444787,1717397432247,-325.0860762,0.00019522,2]
[328444789,1717397432256,-250.0,0.00019857,2]
[328444791,1717397432266,-1349.4446289,0.00020849,2]
[328444793,1717397432275,-10062.97556561,0.00021,2]
[328444795,1717397432285,-198.28961148,0.00021,2]
[328444797,1717397432295,-216.294838,0.00021918,2]
[328444799,1717397432304,-565.5043112,0.00021918,2]
[328444801,1717397432313,-535.66,0.000224,2]
[328444803,1717397432323,-205.0258957,0.00022678,2]
[328444805,1717397432332,-292.111389,0.00022878,2]
[328444807,1717397432341,-410.0517914,0.00022878,2]
[328444809,1717397432351,-292.111389,0.00022878,2]
[328444811,1717397432360,-205.0258957,0.00022878,2]
[328444813,1717397432369,-204.5248435,0.00022904,2]
[328444815,1717397432378,-410.0517914,0.00022978,2]
[328444817,1717397432387,-583.2855187,0.00022978,2]
[328444819,1717397432396,-156.0275613,0.00022978,2]
[328444821,1717397432405,-153.0,0.00022978,2]
[328444823,1717397432415,-410.0517914,0.00022978,2]
[328444825,1717397432424,-292.111389,0.00022978,2]
[328444827,1717397432435,-151.0,0.00023136,5]
[328444829,1717397432444,-267.64867022,0.00023424,2]
[328444831,1717397432453,-180.15475166,0.00023558,2]
[328444832,1717397432463,-15586.24186762,0.000236,3]
[328444920,1717397439224,-1363.23844734,0.000236,3]
[328444921,1717397439236,-5370.81999983,0.000236,3]
[328444953,1717397445003,-1383.25553838,0.000236,3]
[328444956,1717397445012,-500.0,0.00023658,2]
[328444959,1717397445022,-415.21724868,0.00023658,2]